bitfinex-derivatives/quotes_SOLF0:USTF0_20250808
["timestamp","ask_amount","ask_price","bid_price","bid_amount"]
[1754661287463,3.1,177.51,177.46,9.85893038]
[1754661287764,9.85893038,177.55,177.42,9.85893038]
[1754661287966,3.1,177.54,177.42,9.85893038]
[1754661288358,3.1,177.53,177.42,9.85893038]
[1754661288563,3.1,177.52,177.45,9.85893038]
[1754661288864,3.1,177.52,177.43,9.85893038]
[1754661289464,3.1,177.52,177.43,9.83893038]
[1754661290555,3.1,177.52,177.49,5.632]
[1754661290755,3.1,177.56,177.46,9.85893038]
[1754661291356,3.1,177.56,177.49,9.85893038]
[1754661292365,3.1,177.62,177.52,5.631]
[1754661292559,3.1,177.61,177.52,5.631]
[1754661292761,3.1,177.61,177.54,5.6303]
[1754661292970,3.1,177.61,177.52,9.85893038]
[1754661293166,3.1,177.61,177.47,128.16]
[1754661293370,3.1,177.61,177.54,5.6303]
[1754661293570,5.6281,177.62,177.53,9.85893038]
[1754661293571,3.0119753,177.62,177.53,9.85893038]
[1754661293864,3.0119753,177.69,177.62,5.6279]
[1754661294063,3.1,177.67,177.6,9.85893038]
[1754661294272,3.0119753,177.66,177.6,9.85893038]
[1754661294471,3.1,177.64,177.6,9.85893038]
[1754661294668,3.0119753,177.69,177.63,9.85893038]
[1754661294870,3.1,177.66,177.63,9.85893038]
[1754661295070,3.1,177.65,177.62,15.48693038]
[1754661295260,3.1,177.65,177.62,9.85893038]
[1754661295464,3.0119753,177.64,177.62,9.85893038]
[1754661295663,3.1,177.65,177.63,5.6276]
[1754661295868,3.1,177.65,177.51,378.64]
[1754661296074,6.15670375,177.64,177.61,9.85893038]
[1754661296276,3.05670375,177.63,177.61,9.85893038]
[1754661296472,3.05670375,177.62,177.61,9.85893038]
[1754661296767,3.05670375,177.62,177.61,15.48723038]
[1754661297173,3.05670375,177.62,177.61,5.6283]
[1754661297475,3.05670375,177.62,177.61,15.48723038]
[1754661297671,3.1,177.67,177.61,9.85893038]
[1754661297974,3.1,177.67,177.65,9.85893038]
[1754661298172,3.1,177.67,177.66,5.6267]
[1754661298379,3.1,177.67,177.65,9.85893038]
[1754661298768,6.23767096,177.76,177.65,9.85893038]
[1754661298977,3.1,177.68,177.65,9.85893038]
[1754661299176,3.1,177.67,177.65,9.85893038]
[1754661299475,3.1,177.66,177.65,9.85893038]
[1754661299677,3.1,177.69,177.65,9.85893038]
[1754661299872,3.1,177.74,177.66,5.6267]
[1754661300069,3.1,177.74,177.65,9.85893038]
[1754661300469,3.1,177.74,177.68,15.48483038]
[1754661300675,3.1,177.74,177.68,9.85893038]
[1754661301467,3.1,177.74,177.6,9.85893038]
[1754661301468,3.1,177.74,177.66,9.85893038]
[1754661301669,3.1,177.72,177.69,9.85893038]
[1754661301868,3.1,177.78,177.69,9.85893038]
[1754661302073,6.23767096,177.83,177.73,9.85893038]
[1754661302278,3.1,177.76,177.73,9.85893038]
[1754661302480,6.23767096,177.83,177.73,9.85893038]
[1754661302680,3.1,177.78,177.66,127.98]
[1754661302882,3.1,177.83,177.7,9.85893038]
[1754661303073,3.1,177.81,177.68,9.85893038]
[1754661303273,3.1,177.81,177.71,9.85893038]
[1754661303777,3.1,177.81,177.66,235.0]
[1754661303981,3.1,177.84,177.71,9.85893038]
[1754661304180,3.1,177.83,177.71,9.85893038]
[1754661304480,3.1,177.83,177.67,9.85893038]
[1754661304481,3.1,177.77,177.67,9.85893038]
[1754661304684,3.1,177.77,177.62,363.02]
[1754661304996,9.85893038,177.74,177.62,372.87893038]
[1754661305184,3.1,177.73,177.62,9.85893038]
[1754661305585,3.1,177.71,177.6,9.85893038]
[1754661306293,3.08,177.68,177.58,9.85893038]
[1754661306579,3.08,177.68,177.61,9.85893038]
[1754661307088,3.08,177.68,177.61,15.48693038]
[1754661307288,9.85893038,177.67,177.55,9.85893038]
[1754661307486,9.85893038,177.64,177.53,9.85893038]
[1754661307782,3.08,177.61,177.52,5.6311]
[1754661307989,3.08,177.61,177.54,9.85893038]
[1754661308181,3.08,177.61,177.53,5.6308]
[1754661308888,3.08,177.6,177.47,127.94]
[1754661309085,3.08,177.6,177.49,9.85893038]
[1754661309784,3.08,177.6,177.47,127.94]
[1754661309785,3.08,177.58,177.47,127.94]
[1754661309983,3.08,177.56,177.47,127.94]
[1754661310190,3.11284875,177.55,177.53,5.6305]
[1754661310389,3.11284875,177.54,177.49,9.85893038]
[1754661310589,6.19284875,177.53,177.49,9.85893038]
[1754661310786,3.11284875,177.52,177.5,5.6318]
[1754661310988,3.11284875,177.51,177.49,9.85893038]
[1754661311188,3.08,177.56,177.49,9.85893038]
[1754661311490,3.11284875,177.55,177.49,9.85893038]
[1754661311694,6.19284875,177.54,177.49,9.85893038]
[1754661311888,3.11284875,177.53,177.49,9.85893038]
[1754661312195,3.11284875,177.52,177.48,9.85893038]
[1754661312392,3.11284875,177.53,177.48,9.85893038]
[1754661312590,3.11284875,177.52,177.51,9.85893038]
[1754661312790,3.11284875,177.56,177.51,9.85893038]
[1754661312993,3.11284875,177.55,177.54,5.6305]
[1754661313192,3.11284875,177.57,177.54,9.85893038]
[1754661313392,3.11284875,177.56,177.55,15.48893038]
[1754661313582,9.48766306,177.66,177.55,137.15893038]
[1754661313583,3.08,177.66,177.55,137.15893038]
[1754661313783,3.08,177.64,177.62,9.85893038]
[1754661313987,3.08,177.62,177.55,127.3]
[1754661314188,3.08,177.67,177.55,127.3]
[1754661314495,3.08,177.62,177.54,5.6305]
[1754661314795,3.08,177.62,177.51,9.85893038]
[1754661315294,3.08,177.62,177.54,9.85893038]
[1754661315490,3.08,177.62,177.48,127.68]
[1754661315698,6.23767096,177.61,177.49,9.85893038]
[1754661315890,3.08,177.6,177.49,9.85893038]
[1754661316086,3.08,177.6,177.53,5.6307]
[1754661316293,3.08,177.6,177.52,9.85893038]
[1754661316487,6.23767096,177.62,177.55,9.85893038]
[1754661316794,3.08,177.62,177.59,9.85893038]
[1754661316991,3.08,177.62,177.48,132.68]
[1754661317190,3.08,177.62,177.6,9.85893038]
[1754661317390,3.08,177.64,177.6,9.85893038]
[1754661317794,3.08,177.63,177.61,5.628]
[1754661318087,6.23767096,177.68,177.6,9.85893038]
[1754661318088,3.08,177.66,177.6,9.85893038]
[1754661318284,3.08,177.66,177.53,5.0]
[1754661318285,3.08,177.66,177.63,9.85893038]
[1754661318486,3.08,177.71,177.63,9.85893038]
[1754661318695,3.08,177.74,177.68,9.85893038]
[1754661318997,3.08,177.76,177.72,9.85893038]
[1754661319295,6.23767096,177.8,177.72,9.85893038]
[1754661319490,3.08,177.8,177.78,9.85893038]
[1754661319798,3.08,177.84,177.78,5.63920041]
[1754661320095,3.08,177.83,177.79,5.6226]
[1754661320391,3.08,177.82,177.78,5.63920041]
[1754661320696,3.08,177.87,177.78,5.63920041]
[1754661321099,3.08,177.87,177.8,5.6223]
[1754661321394,3.08,177.87,177.77,9.85893038]
[1754661321590,3.08,177.87,177.8,9.85893038]
[1754661322399,3.08,177.87,177.75,9.85893038]
[1754661322696,3.08,177.83,177.75,9.85893038]
[1754661323299,3.08,177.83,177.76,5.6233]
[1754661323888,9.85893038,177.83,177.64,378.48]
[1754661324088,3.08,177.82,177.78,0.03727164]
[1754661324588,3.08,177.82,177.73,9.85893038]
[1754661324998,3.08,177.85,177.73,9.85893038]
[1754661325198,3.08,177.85,177.76,9.85893038]
[1754661325701,3.08,177.83,177.76,9.85893038]
[1754661325899,3.18723741,177.84,177.76,9.85893038]
[1754661325900,6.26723741,177.82,177.76,9.85893038]
[1754661326094,3.18723741,177.81,177.8,5.6223]
[1754661326300,3.08,177.86,177.79,9.85893038]
[1754661326489,3.18723741,177.85,177.83,9.85893038]
[1754661327296,9.85893038,177.96,177.76,9.85893038]
[1754661327297,6.26723741,177.84,177.76,9.85893038]
[1754661327496,6.26723741,177.83,177.76,9.85893038]
[1754661327701,3.08,177.8,177.77,5.6232]
[1754661327896,3.08,177.79,177.76,9.85893038]
[1754661328302,3.08,177.78,177.76,9.85893038]
[1754661328502,3.08,177.81,177.7,9.85893038]
[1754661328698,3.18723741,177.8,177.73,5.6244]
[1754661328903,6.26723741,177.79,177.7,9.85893038]
[1754661329094,3.18723741,177.78,177.73,9.85893038]
[1754661329299,3.08,177.75,177.73,9.85893038]
[1754661329498,3.08,177.75,177.65,275.13746664]
[1754661329499,3.08,177.75,177.71,9.85893038]
[1754661329699,6.26723741,177.75,177.72,5.6246]
[1754661329906,3.08,177.75,177.72,5.6246]
[1754661330307,3.08,177.77,177.65,275.13746664]
[1754661330500,3.08,177.75,177.69,9.85893038]
[1754661330695,3.08,177.73,177.7,5.6252]
[1754661331003,3.08,177.72,177.69,9.85893038]
[1754661331398,3.08,177.78,177.65,148.29746664]
[1754661331705,3.08,177.76,177.64,388.33893038]
[1754661331914,3.08,177.74,177.64,388.33893038]
[1754661332109,3.18723741,177.73,177.64,388.33893038]
[1754661332304,6.26723741,177.72,177.67,9.85893038]
[1754661332503,3.18723741,177.71,177.67,9.85893038]
[1754661332699,3.18723741,177.7,177.67,9.85893038]
[1754661332896,3.18723741,177.69,177.68,5.626]
[1754661333106,3.18723741,177.7,177.68,5.626]
[1754661333408,3.18723741,177.69,177.68,5.626]
[1754661333604,3.18723741,177.7,177.69,5.6258]
[1754661333806,3.18723741,177.73,177.64,378.48]
[1754661334110,3.18723741,177.72,177.69,9.85893038]
[1754661334403,3.08,177.77,177.69,9.85893038]
[1754661334610,3.08,177.8,177.68,126.96]
[1754661334915,3.08,177.79,177.68,126.96]
[1754661335103,3.08,177.86,177.75,9.85893038]
[1754661335303,3.08,177.85,177.75,9.85893038]
[1754661335502,3.08,177.85,177.77,9.85893038]
[1754661335910,3.08,177.85,177.8,9.85893038]
[1754661336207,3.25,177.84,177.8,5.64016176]
[1754661336408,3.25,177.87,177.8,5.64016176]
[1754661336606,3.25,177.87,177.86,9.85893038]
[1754661336803,5.6178,177.95,177.86,15.47903038]
[1754661337107,3.25,177.89,177.86,15.47903038]
[1754661337308,3.25,177.89,177.86,9.85893038]
[1754661337610,3.25,177.92,177.86,9.85893038]
[1754661337806,3.25,177.92,177.77,509.88]
[1754661337807,8.8686,177.92,177.83,5.6211]
[1754661337998,3.25,177.91,177.83,5.6211]
[1754661338202,3.25,177.91,177.82,9.85893038]
[1754661338508,3.25,177.9,177.8,9.85893038]
[1754661339010,3.25,177.89,177.82,9.85893038]
[1754661339305,3.25,177.89,177.78,126.48]
[1754661339506,3.25,177.89,177.88,5.6198]
[1754661339697,3.25,177.91,177.88,5.6198]
[1754661339902,378.16,177.98,177.88,5.6198]
[1754661340101,3.25,177.89,177.88,5.6198]
[1754661340306,3.25,177.88,177.77,378.16]
[1754661340503,378.16,177.98,177.84,9.85893038]
[1754661340504,3.25,177.87,177.84,9.85893038]
[1754661340704,3.25,177.86,177.83,9.85893038]
[1754661340906,3.25,177.87,177.81,9.85893038]
[1754661341101,3.25,177.87,177.78,9.85893038]
[1754661341304,3.25,177.85,177.77,378.16]
[1754661341509,13.10893038,177.85,177.7,126.22]
[1754661341713,3.25,177.84,177.73,9.85893038]
[1754661342009,3.25,177.82,177.73,9.85893038]
[1754661342407,3.25,177.82,177.76,5.6233]
[1754661343009,3.25,177.82,177.75,5.6238]
[1754661343304,3.25,177.82,177.7,126.22]
[1754661343508,5.6223,177.8,177.72,5.6248]
[1754661343710,3.25,177.79,177.7,9.85893038]
[1754661344215,3.25,177.79,177.72,5.6247]
[1754661344409,3.25,177.79,177.68,9.85893038]
[1754661344615,3.25,177.79,177.66,504.16]
[1754661345012,3.25,177.79,177.66,9.85893038]
[1754661345212,3.25,177.76,177.64,9.85893038]
[1754661345512,3.25,177.76,177.67,9.85893038]
[1754661346713,3.25,177.73,177.7,9.85893038]
[1754661347112,3.25,177.76,177.7,9.85893038]
[1754661348008,3.17445854,177.76,177.73,9.85893038]
[1754661348215,3.25,177.82,177.73,9.85893038]
[1754661348410,3.17445854,177.81,177.77,9.85893038]
[1754661348606,3.25,177.79,177.78,5.6227]
[1754661348818,3.25,177.78,177.77,9.85893038]
[1754661349419,3.25,177.81,177.77,9.85893038]
[1754661349607,3.25,177.8,177.77,9.85893038]
[1754661349814,3.25,177.8,177.79,5.6226]
[1754661350513,3.25,177.84,177.78,5.6229]
[1754661350716,3.25,177.82,177.78,5.6229]
[1754661350911,3.25,177.81,177.77,9.85893038]
[1754661351218,3.25,177.88,177.78,5.6226]
[1754661351413,3.25,177.86,177.78,5.6226]
[1754661351609,3.17445854,177.85,177.79,5.6224]
[1754661351913,3.25,177.83,177.74,9.85893038]
[1754661352210,3.25,177.81,177.74,9.85893038]
[1754661352420,6.42445854,177.8,177.74,9.85893038]
[1754661352612,5.6214,177.83,177.76,5.6233]
[1754661352912,3.25,177.81,177.74,9.85893038]
[1754661353113,3.25,177.81,177.8,5.6223]
[1754661353613,3.17445854,177.84,177.83,5.6213]
[1754661353807,3.25,177.85,177.83,9.85893038]
[1754661354217,3.25,177.91,177.83,9.85893038]
[1754661354417,3.25,177.89,177.83,9.85893038]
[1754661354713,3.25,177.87,177.83,9.85893038]
[1754661355311,3.25,177.87,177.78,124.62]
[1754661355510,3.25,177.86,177.84,9.85893038]
[1754661355713,3.17504278,177.89,177.83,5.6213]
[1754661355914,9.85893038,177.93,177.81,9.85893038]
[1754661355915,3.25,177.87,177.81,9.85893038]
[1754661356117,3.25,177.84,177.81,9.85893038]
[1754661356416,3.17504278,177.85,177.81,9.85893038]
[1754661356620,3.25,177.93,177.84,9.85893038]
[1754661356808,3.25,177.9,177.84,9.85893038]
[1754661357013,3.25,177.88,177.84,9.85893038]
[1754661357209,3.25,177.85,177.84,9.85893038]
[1754661357418,6.42970483,177.85,177.84,9.85893038]
[1754661357620,3.17970483,177.85,177.81,9.85893038]
[1754661357815,3.25,177.83,177.81,9.85893038]
[1754661358012,3.1829242,177.83,177.82,15.48063038]
[1754661358216,3.1829242,177.83,177.82,9.85893038]
[1754661358619,3.1829242,177.83,177.82,15.48063038]
[1754661359015,3.25,177.84,177.82,15.48063038]
[1754661359214,3.25,177.84,177.83,5.6213]
[1754661359411,6.39487729,177.84,177.83,5.6213]
[1754661359609,3.14487729,177.84,177.83,5.6213]
[1754661360021,3.25,177.83,177.81,9.85893038]
[1754661360218,3.14487729,177.82,177.81,9.85893038]
[1754661360419,6.23767096,177.92,177.81,9.85893038]
[1754661360420,3.25,177.92,177.81,15.47893038]
[1754661360614,9.85893038,177.99,177.9,9.85893038]
[1754661360615,3.25,177.94,177.9,9.85893038]
[1754661360822,3.25,177.93,177.84,9.85893038]
[1754661361022,3.25,177.93,177.92,9.85893038]
[1754661361316,3.25,177.96,177.92,9.85893038]
[1754661361518,6.23767096,178.01,177.9,9.85893038]
[1754661361823,3.25,177.93,177.9,9.85893038]
[1754661362116,6.23767096,178.01,177.87,9.85893038]
[1754661362117,3.25,177.95,177.87,9.85893038]
[1754661362425,3.25,177.98,177.9,9.85893038]
[1754661362611,3.25,177.97,177.89,9.85893038]
[1754661363718,3.25,177.97,177.9,5.6189]
[1754661364119,3.25,177.97,177.89,9.85893038]
[1754661364923,5.6166,177.99,177.92,9.85893038]
[1754661365223,3.25,177.94,177.92,9.85893038]
[1754661365425,3.25,177.99,177.92,9.85893038]
[1754661365623,3.25,177.98,177.95,9.85893038]
[1754661365821,9.48767096,178.03,177.95,9.85893038]
[1754661366025,3.2,178.02,177.95,9.85893038]
[1754661366227,3.2,178.02,177.93,9.85893038]
[1754661366622,3.2,178.01,177.94,5.6178]
[1754661366823,3.2,178.01,177.93,9.85893038]
[1754661367217,3.2,178.0,177.92,9.85893038]
[1754661367924,3.2,177.98,177.92,9.85893038]
[1754661368319,3.2,177.98,177.84,9.85893038]
[1754661368527,3.2,177.98,177.87,9.85893038]
[1754661368824,3.2,177.92,177.85,9.85893038]
[1754661369021,3.2,177.92,177.83,123.26]
[1754661369219,3.2,177.92,177.88,5.6197]
[1754661369422,3.2,177.91,177.88,5.6197]
[1754661369617,16.09660134,177.98,177.86,9.85893038]
[1754661369928,3.2,177.96,177.86,9.85893038]
[1754661370626,9.43767096,177.95,177.84,9.85893038]
[1754661370818,5.6182,177.94,177.87,5.6202]
[1754661371022,3.2,177.93,177.84,9.85893038]
[1754661371226,3.2,177.93,177.82,378.0]
[1754661371420,3.2,177.93,177.87,5.62]
[1754661371619,3.2,177.92,177.82,378.0]
[1754661371822,3.2,177.92,177.85,9.85893038]
[1754661372025,5.6183,177.94,177.87,5.62]
[1754661372228,3.2,177.93,177.87,5.62]
[1754661372430,3.06766432,177.92,177.87,5.62]
[1754661372626,3.2,177.9,177.87,5.62]
[1754661372826,3.06766432,177.89,177.87,5.62]
[1754661373029,6.26766432,177.88,177.86,5.6205]
[1754661373233,3.2,177.86,177.84,9.85893038]
[1754661373429,3.06766432,177.85,177.82,383.6218]
[1754661373636,6.26766432,177.84,177.82,5.6218]
[1754661373938,3.06766432,177.83,177.82,15.48073038]
[1754661374430,3.2,177.88,177.82,9.85893038]
[1754661374635,3.06825573,177.87,177.85,9.85893038]
[1754661374935,3.06825573,177.86,177.85,15.47983038]
[1754661375137,6.26825573,177.86,177.78,122.7]
[1754661375334,3.2,177.84,177.83,9.85893038]
[1754661375535,3.06825573,177.84,177.83,15.48023038]
[1754661375738,3.06825573,177.86,177.83,9.85893038]
[1754661375935,3.06825573,177.85,177.83,9.85893038]
[1754661376236,3.06825573,177.84,177.83,9.85893038]
[1754661376437,3.06825573,177.89,177.83,9.85893038]
[1754661376625,3.06825573,177.88,177.87,15.47913038]
[1754661376830,3.06825573,177.92,177.87,9.85893038]
[1754661377031,3.06825573,177.98,177.86,505.4]
[1754661377231,3.2,177.99,177.97,9.85893038]
[1754661377438,324.1676815,178.1,177.86,505.4]
[1754661377439,3.2,178.02,177.93,122.56]
[1754661377737,3.2,177.99,177.92,9.85893038]
[1754661378035,3.2,177.96,177.9,122.56]
[1754661378232,3.2,177.95,177.92,5.6184]
[1754661378537,3.2,177.94,177.91,9.85893038]
[1754661378732,3.2,177.94,177.88,9.85893038]
[1754661378932,21.08653038,178.08,177.86,377.84]
[1754661378933,3.2,177.92,177.86,377.84]
[1754661379238,3.06815745,177.91,177.86,377.84]
[1754661379431,5.6178,177.95,177.86,377.84]
[1754661379432,3.2,177.89,177.86,387.69893038]
[1754661379832,3.2,177.88,177.86,393.31943038]
[1754661380046,3.2,177.88,177.86,387.69893038]
[1754661380241,3.07033096,177.91,177.87,5.62]
[1754661380436,3.07033096,177.9,177.86,387.69893038]
[1754661380636,3.07033096,177.91,177.89,9.85893038]
[1754661380837,3.2,177.92,177.89,9.85893038]
[1754661381140,6.27033096,177.91,177.89,9.85893038]
[1754661381346,3.2,177.91,177.89,15.47853038]
[1754661381546,3.2,177.95,177.86,387.69893038]
[1754661381746,3.07033096,177.94,177.86,510.23893038]
[1754661381941,3.2,177.92,177.84,132.39893038]
[1754661382138,3.2,177.9,177.76,377.82]
[1754661382441,3.2,177.95,177.87,9.85893038]
[1754661382644,3.2,177.95,177.89,9.85893038]
[1754661382838,3.07003504,177.94,177.89,9.85893038]
[1754661383244,3.2,177.92,177.88,9.85893038]
[1754661383451,3.2,177.92,177.86,122.54]
[1754661383452,3.2,177.92,177.79,235.0]
[1754661383750,3.2,177.9,177.8,132.39893038]
[1754661383937,3.2,177.88,177.8,132.39893038]
[1754661384138,3.07034512,177.87,177.86,15.47953038]
[1754661384344,3.2,177.89,177.86,15.47953038]
[1754661384549,3.07034512,177.92,177.85,9.85893038]
[1754661384741,3.07034512,177.91,177.85,9.85893038]
[1754661384937,3.2,177.86,177.85,9.85893038]
[1754661385142,3.2,177.86,177.8,357.54]
[1754661385341,3.2,177.86,177.84,5.6211]
[1754661385542,3.2,177.85,177.83,9.85893038]
[1754661385947,3.2,177.92,177.83,9.85893038]
[1754661386144,3.2,177.9,177.83,9.85893038]
[1754661386346,3.07034512,177.89,177.8,357.54]
[1754661386541,3.2,177.88,177.84,9.85893038]
[1754661386947,3.2,177.88,177.87,5.6202]
[1754661387155,6.27034512,177.93,177.87,9.85893038]
[1754661387449,588.0,178.06,177.84,122.54]
[1754661387450,3.07034512,177.98,177.92,9.85893038]
[1754661387651,3.2,177.94,177.92,9.85893038]
[1754661387846,3.07034512,177.96,177.92,9.85893038]
[1754661388045,6.27034512,177.95,177.92,9.85893038]
[1754661388242,3.2,177.95,177.9,122.54]
[1754661388553,3.2,177.95,177.92,9.85893038]
[1754661388943,3.2,177.95,177.94,5.618]
[1754661389139,6.27034512,177.96,177.9,122.54]
[1754661389343,6.27034512,177.95,177.93,9.85893038]
[1754661389551,3.2,177.93,177.92,9.85893038]
[1754661389851,3.07660158,177.93,177.9,122.54]
[1754661390047,3.07660158,177.92,177.91,5.619]
[1754661390253,3.07660158,177.92,177.9,122.54]
[1754661390450,6.27660158,177.91,177.9,122.54]
[1754661390653,3.2,177.91,177.9,122.54]
[1754661390850,6.27660158,177.91,177.9,122.54]
[1754661391157,3.2,177.89,177.85,5.6208]
[1754661391358,3.2,177.87,177.84,132.37893038]
[1754661391654,3.07660158,177.86,177.85,5.6209]
[1754661391946,6.27660158,177.86,177.85,5.6209]
[1754661392143,6.27660158,177.86,177.84,132.37893038]
[1754661392144,3.07660158,177.92,177.84,132.37893038]
[1754661392346,3.2,177.88,177.84,132.37893038]
[1754661392554,3.07660158,177.87,177.84,132.37893038]
[1754661392844,3.08436206,177.88,177.86,9.85893038]
[1754661393050,3.2,177.92,177.86,9.85893038]
[1754661393051,3.08436206,177.87,177.86,15.47953038]
[1754661393254,3.08436206,177.91,177.84,142.23786076]
[1754661393454,6.28436206,177.9,177.89,9.85893038]
[1754661393652,3.08436206,177.9,177.89,15.47833038]
[1754661394049,3.08436206,177.9,177.89,137.97833038]
[1754661395249,3.08436206,177.9,177.89,128.1194]
[1754661395555,3.08436206,177.9,177.89,137.97833038]
[1754661396057,3.2,177.92,177.91,5.6187]
[1754661396258,6.28734428,177.92,177.91,5.6187]
[1754661396659,3.08734428,177.92,177.91,5.6187]
[1754661396860,3.08734428,177.92,177.91,15.47763038]
[1754661397261,3.07,177.95,177.94,5.618]
[1754661397461,3.07,177.98,177.94,9.85893038]
[1754661397664,6.23767096,178.0,177.93,122.48]
[1754661397962,6.23767096,178.0,177.94,9.85893038]
[1754661398161,3.07,177.99,177.94,9.85893038]
[1754661398358,6.23767096,177.98,177.93,122.48]
[1754661398552,3.07,177.97,177.93,122.48]
[1754661398760,3.07,177.97,177.93,132.33893038]
[1754661398952,3.07,177.96,177.93,132.33893038]
[1754661399160,3.07,177.96,177.94,5.618]
[1754661399361,3.07,177.95,177.93,132.33893038]
[1754661399764,3.07,177.95,177.91,9.85893038]
[1754661400062,3.07,177.95,177.76,377.82]
[1754661400260,5.6196,177.89,177.83,9.85893038]
[1754661400462,3.07,177.88,177.8,9.85893038]
[1754661400863,6.23767096,177.9,177.83,9.85893038]
[1754661400864,3.07,177.87,177.83,9.85893038]
[1754661401165,3.07,177.91,177.86,9.85893038]
[1754661401368,6.23767096,177.91,177.86,9.85893038]
[1754661401565,3.07,177.9,177.86,9.85893038]
[1754661401766,3.07,177.9,177.86,15.47923038]
[1754661402069,3.07,177.89,177.86,9.85893038]
[1754661402262,6.23767096,177.93,177.87,5.62]
[1754661402569,3.07,177.88,177.87,5.62]
[1754661402768,9.30767096,177.91,177.85,15.47973038]
[1754661402967,3.07,177.9,177.84,122.44]
[1754661403162,9.30767096,177.9,177.81,9.85893038]
[1754661403467,3.07,177.89,177.81,132.29893038]
[1754661403664,6.23767096,177.91,177.84,9.85893038]
[1754661403963,3.07,177.89,177.88,5.6198]
[1754661404164,3.07,177.89,177.86,9.85893038]
[1754661404360,3.07,177.91,177.86,9.85893038]
[1754661404561,3.07,177.93,177.89,9.85893038]
[1754661404867,3.07,177.92,177.86,122.42]
[1754661405064,3.07,177.92,177.9,9.85893038]
[1754661405260,6.23767096,177.96,177.9,9.85893038]
[1754661405467,3.07,177.97,177.93,9.85893038]
[1754661405663,6.23767096,177.98,177.93,9.85893038]
[1754661405865,3.07,177.97,177.96,15.47633038]
[1754661406060,3.07,177.99,177.96,9.85893038]
[1754661406257,3.07,177.98,177.93,9.85893038]
[1754661406468,6.23767096,178.0,177.93,9.85893038]
[1754661406764,3.07,177.99,177.93,9.85893038]
[1754661406967,6.23767096,178.0,177.97,5.617]
[1754661407171,3.07,177.98,177.97,5.617]
[1754661407463,3.07,178.01,177.99,5.6164]
[1754661407669,3.07,177.99,177.96,9.85893038]
[1754661407967,3.07,177.99,177.97,9.85893038]
[1754661409154,3.07,177.99,177.98,5.6167]
[1754661409356,6.53835666,177.99,177.98,5.6167]
[1754661409866,6.53835666,177.99,177.98,15.47563038]
[1754661410367,6.53835666,177.99,177.98,9.85893038]
[1754661410771,3.46835666,177.99,177.95,9.85893038]
[1754661410967,3.07,177.97,177.95,9.85893038]
[1754661411170,3.46835666,177.96,177.95,9.85893038]
[1754661411364,3.46835666,177.96,177.95,15.47663038]
[1754661411572,3.07,177.95,177.9,9.85893038]
[1754661411867,3.46835666,177.94,177.93,15.47713038]
[1754661412075,3.46835666,177.94,177.93,9.85893038]
[1754661412076,4.03313642,177.94,177.93,9.85893038]
[1754661412274,3.07,177.99,177.93,9.85893038]
[1754661412971,3.07,177.99,177.96,9.85893038]
[1754661413367,6.23767096,178.03,177.96,9.85893038]
[1754661413671,3.07,177.98,177.97,5.6171]
[1754661413867,3.07,178.02,177.96,9.85893038]
[1754661414372,3.07,178.01,177.96,9.85893038]
[1754661414573,3.07,178.01,177.95,5.6177]
[1754661415076,3.07,178.01,177.94,9.85893038]
[1754661415462,3.07,178.0,177.97,9.85893038]
[1754661415667,3.07,177.99,177.97,9.85893038]
[1754661415869,3.07,177.99,177.97,15.47573038]
[1754661416579,3.07,177.99,177.97,5.6168]
[1754661416773,3.07,177.99,177.97,15.47573038]
[1754661416970,3.07,178.02,177.98,5.6167]
[1754661417274,9.30767096,178.02,177.97,9.85893038]
[1754661417472,9.30767096,178.0,177.95,9.85893038]
[1754661417663,3.07,177.99,177.95,9.85893038]